bitfinex/quotes_BTCUSD_20251217
["timestamp","ask_amount","ask_price","bid_price","bid_amount"]
[1765989647135,1.04312236,86619.0,86579.0,0.74172176]
[1765989647136,0.0907,86618.0,86593.0,0.52279]
[1765989647341,0.0907,86616.0,86600.0,0.01351176]
[1765989647775,0.0907,86616.0,86600.0,0.01505176]
[1765989648238,0.00076243,86609.0,86600.0,0.01505176]
[1765989648449,0.0907,86616.0,86600.0,0.01505176]
[1765989648633,0.0907,86616.0,86600.0,0.01605176]
[1765989649085,0.0907,86619.0,86600.0,0.01605176]
[1765989649406,0.0907,86619.0,86600.0,0.01505176]
[1765989649803,0.0907,86619.0,86600.0,0.00254]
[1765989649804,0.0907,86609.0,86600.0,0.00254]
[1765989650071,0.0907,86609.0,86600.0,0.001]
[1765989650072,0.0907,86607.0,86600.0,0.001]
[1765989650903,0.0907,86607.0,86579.0,0.01351176]
[1765989651111,0.0907,86607.0,86584.0,0.01872]
[1765989651317,0.00064,86606.0,86584.0,0.00078]
[1765989651819,0.0907,86599.0,86584.0,0.00078]
[1765989652221,0.0907,86595.0,86584.0,0.00078]
[1765989652699,0.0907,86595.0,86578.0,0.01872]
[1765989652903,0.0907,86595.0,86584.0,0.001]
[1765989653106,0.0907,86595.0,86584.0,0.00178]
[1765989653309,0.0907,86599.0,86584.0,0.00178]
[1765989653508,0.09153287,86599.0,86584.0,0.00178]
[1765989653708,0.09134,86594.0,86584.0,0.001]
[1765989653932,0.01137616,86593.0,86584.0,0.001]
[1765989654139,0.01220903,86593.0,86572.0,0.01872]
[1765989654312,0.01220903,86593.0,86573.0,0.01351176]
[1765989654516,0.0907,86589.0,86584.0,0.001]
[1765989654715,0.01075016,86588.0,86572.0,0.01872]
[1765989654997,0.09134,86586.0,86558.0,1.24653176]
[1765989655182,0.0907,86584.0,86559.0,0.01872]
[1765989655398,0.0907,86579.0,86560.0,0.01872]
[1765989655646,0.0907,86577.0,86561.0,1.25096]
[1765989655849,1.0,86576.0,86558.0,0.01351176]
[1765989656060,0.09153287,86577.0,86562.0,0.74693]
[1765989656266,0.09153287,86577.0,86562.0,0.74771]
[1765989656481,0.01076485,86576.0,86562.0,0.74771]
[1765989656726,0.0907,86571.0,86562.0,0.00078]
[1765989656926,0.01076485,86570.0,86562.0,0.00078]
[1765989658175,0.01176485,86570.0,86562.0,0.00078]
[1765989658384,0.01076485,86570.0,86562.0,0.00078]
[1765989658591,0.01140485,86570.0,86545.0,0.01351176]
[1765989658793,0.0907,86559.0,86546.0,0.01872]
[1765989658965,0.01076485,86558.0,86546.0,0.01872]
[1765989659126,0.01076485,86558.0,86547.0,0.01351176]
[1765989659340,0.01076485,86558.0,86547.0,0.01429176]
[1765989660000,0.01076485,86558.0,86547.0,0.00078]
[1765989660237,1.0,86557.0,86524.0,0.50403]
[1765989660435,1.04312236,86540.0,86524.0,0.00078]
[1765989660642,0.0907,86539.0,86524.0,0.00078]
[1765989660955,0.0907,86535.0,86524.0,0.00078]
[1765989661155,1.04312236,86540.0,86510.0,0.02235182]
[1765989661156,0.0907,86524.0,86510.0,0.00363182]
[1765989661368,0.0907,86519.0,86510.0,0.00363182]
[1765989661582,0.0907,86517.0,86510.0,0.00363182]
[1765989661815,0.01076818,86516.0,86510.0,0.00363182]
[1765989662001,0.0907,86514.0,86510.0,0.00363182]
[1765989662200,0.0907,86517.0,86510.0,0.00363182]
[1765989662440,0.01074775,86516.0,86510.0,0.00363182]
[1765989662658,0.01155721,86526.0,86510.0,0.00363182]
[1765989662659,1.04312236,86540.0,86510.0,0.00441182]
[1765989662871,0.02900245,86537.0,86515.0,0.00078]
[1765989663094,1.04312236,86540.0,86515.0,0.00078]
[1765989663095,1.04312236,86520.0,86515.0,0.00078]
[1765989663315,0.003,86524.0,86515.0,0.00078]
[1765989663519,0.0907,86529.0,86515.0,0.00078]
[1765989663727,0.0907,86526.0,86511.0,0.01872]
[1765989663935,0.0907,86520.0,86510.0,0.00063182]
[1765989664149,0.0907,86518.0,86510.0,0.00063182]
[1765989664355,0.0907,86514.0,86510.0,0.00063182]
[1765989664568,0.0907,86516.0,86510.0,0.00063182]
[1765989664776,0.0907,86514.0,86510.0,0.00063182]
[1765989664983,0.00083287,86514.0,86510.0,0.00063182]
[1765989665193,0.00083287,86511.0,86510.0,1.82e-06]
[1765989665400,0.00083287,86511.0,86495.0,0.03223176]
[1765989665620,0.0907,86509.0,86495.0,0.03223176]
[1765989665833,0.0907,86509.0,86495.0,0.03301176]
[1765989666036,0.0907,86509.0,86495.0,0.00078]
[1765989666462,0.0907,86509.0,86491.0,0.01872]
[1765989666463,0.0907,86505.0,86491.0,0.01872]
[1765989666684,0.0907,86505.0,86475.0,0.0002]
[1765989666685,0.0907,86500.0,86475.0,0.0002]
[1765989666932,0.0907,86509.0,86491.0,0.00078]
[1765989667355,0.0907,86509.0,86492.0,0.50403]
[1765989667565,0.0907,86509.0,86492.0,0.50481]
[1765989667805,0.0907,86501.0,86495.0,0.001]
[1765989668017,0.0907,86501.0,86492.0,0.00078]
[1765989669694,0.00083287,86511.0,86492.0,0.00078]
[1765989669870,0.0907,86509.0,86495.0,0.01351176]
[1765989670100,0.0907,86509.0,86495.0,0.01429176]
[1765989671264,0.0907,86509.0,86502.0,0.0002546]
[1765989671874,0.0907,86505.0,86502.0,0.0002546]
[1765989672094,1.0,86504.0,86502.0,0.0002546]
[1765989672479,0.0907,86503.0,86502.0,0.0002546]
[1765989672678,1.0,86495.0,86471.0,0.01257637]
[1765989672954,1.04312236,86481.0,86471.0,0.01257637]
[1765989673079,1.04312236,86481.0,86471.0,0.01335637]
[1765989673302,0.0907,86480.0,86471.0,0.01335637]
[1765989674386,0.0907,86480.0,86471.0,0.00078]
[1765989674617,1.0,86492.0,86471.0,0.00078]
[1765989674829,0.01156042,86502.0,86471.0,0.00078]
[1765989674830,0.0907,86480.0,86471.0,0.00078]
[1765989675467,0.0907,86480.0,86463.0,0.0001]
[1765989675672,0.01872,86492.0,86463.0,0.00088]
[1765989675885,0.0907,86472.0,86463.0,0.00088]
[1765989676311,0.0907,86470.0,86463.0,0.0001]
[1765989676501,1.04312236,86473.0,86463.0,0.0001]
[1765989676502,0.91125245,86473.0,86463.0,0.0001]
[1765989676744,0.91125245,86473.0,86463.0,0.00088]
[1765989676901,0.01876,86478.0,86463.0,0.00088]
[1765989677106,1.04312236,86480.0,86463.0,0.00088]
[1765989677312,1.04312236,86480.0,86464.0,0.01351176]
[1765989677581,0.9623,86497.0,86466.0,0.73]
[1765989677790,1.04312236,86490.0,86469.0,0.48651]
[1765989677939,0.03052177,86499.0,86477.0,0.01351176]
[1765989678148,1.04312236,86500.0,86481.0,1.21651]
[1765989678349,0.001,86511.0,86481.0,1.21651]
[1765989678350,1.88002236,86510.0,86494.0,0.00025462]
[1765989678509,1.04312236,86500.0,86494.0,0.00025462]
[1765989678710,0.001,86516.0,86494.0,0.00103462]
[1765989679009,1.04312236,86504.0,86494.0,0.00103462]
[1765989679214,0.001,86516.0,86494.0,0.00103462]
[1765989679454,0.0907,86514.0,86494.0,0.00103462]
[1765989679814,0.71221432,86504.0,86494.0,0.00103462]
[1765989680019,0.0907,86509.0,86497.0,0.01351176]
[1765989680197,0.09153287,86509.0,86496.0,0.01351176]
[1765989680397,0.0907,86505.0,86496.0,0.01351176]
[1765989680545,0.0907,86505.0,86496.0,0.01429176]
[1765989681242,0.71221432,86510.0,86496.0,0.01429176]
[1765989681436,0.71221432,86506.0,86496.0,0.01429176]
[1765989681721,0.71221432,86506.0,86497.0,0.01351176]
[1765989682051,0.71221432,86506.0,86497.0,0.01429176]
[1765989682367,0.18721432,86506.0,86497.0,0.01429176]
[1765989682578,0.01876,86523.0,86497.0,0.01429176]
[1765989682579,0.71221432,86520.0,86497.0,0.01429176]
[1765989682822,0.01072027,86519.0,86497.0,0.01529176]
[1765989683173,0.01072027,86519.0,86494.0,4.62e-06]
[1765989683174,1.0,86509.0,86494.0,4.62e-06]
[1765989683341,0.71221432,86504.0,86494.0,4.62e-06]
[1765989683541,0.01072027,86503.0,86497.0,0.002]
[1765989683776,0.01072027,86503.0,86494.0,4.62e-06]
[1765989683980,0.0907,86509.0,86494.0,4.62e-06]
[1765989684187,0.0907,86509.0,86495.0,0.48651]
[1765989684591,0.0907,86509.0,86496.0,0.73]
[1765989684916,0.0907,86509.0,86495.0,0.48651]
[1765989684917,0.09153287,86519.0,86497.0,1.21651]
[1765989685112,0.1348,86518.0,86497.0,1.21651]
[1765989685321,1.0,86539.0,86507.0,0.48651]
[1765989685524,0.08799153,86540.0,86521.0,0.73]
[1765989685741,1.0,86546.0,86524.0,0.48651]
[1765989685946,1.0,86549.0,86524.0,0.48811847]
[1765989686422,0.71221432,86540.0,86524.0,0.48811847]
[1765989686892,0.71221432,86540.0,86525.0,0.01351176]
[1765989687094,1.0,86539.0,86524.0,0.00160847]
[1765989687295,0.01155468,86545.0,86517.0,0.01872]
[1765989687504,0.10202257,86570.0,86512.0,0.00160847]
[1765989687505,1.0,86526.0,86512.0,0.00160847]
[1765989687668,0.71221432,86527.0,86512.0,0.00160847]
[1765989687669,0.0907,86523.0,86512.0,0.00160847]
[1765989687846,0.0907,86526.0,86512.0,0.00160847]
[1765989688054,0.71221432,86527.0,86512.0,0.00160847]
[1765989688233,0.71221432,86527.0,86505.0,0.01872]
[1765989688234,0.0907,86526.0,86511.0,1.21651]
[1765989688437,0.0907,86522.0,86505.0,0.01872]
[1765989688655,0.0907,86522.0,86507.0,1.21651]
[1765989689060,0.0907,86522.0,86506.0,0.01351176]
[1765989689718,0.0907,86524.0,86506.0,0.01351176]
[1765989689933,0.0907,86522.0,86506.0,0.01351176]
[1765989690128,0.0907,86519.0,86506.0,0.01351176]
[1765989690308,0.71221432,86530.0,86506.0,0.01351176]
[1765989690505,0.4942,86529.0,86506.0,0.01351176]
[1765989690710,0.4942,86529.0,86507.0,1.21651]
[1765989691074,0.71221432,86530.0,86506.0,0.74351176]
[1765989691075,0.3059,86527.0,86506.0,0.74351176]
[1765989691290,1.0,86519.0,86506.0,0.01351176]
[1765989691491,0.1021,86519.0,86506.0,0.01451176]
[1765989691704,0.49787,86516.0,86494.0,4.62e-06]
[1765989691920,1.0,86508.0,86494.0,4.62e-06]
[1765989692126,0.49787,86500.0,86494.0,4.62e-06]
[1765989692333,0.00161287,86500.0,86494.0,4.62e-06]
[1765989692540,0.0907,86493.0,86474.0,0.01872]
[1765989692745,0.00161287,86495.0,86477.0,0.48651]
[1765989692947,0.00161287,86495.0,86486.0,0.01351176]
[1765989693120,0.00161287,86495.0,86486.0,0.01376643]
[1765989693329,0.02872747,86504.0,86486.0,0.01376643]
[1765989693531,0.03034034,86504.0,86486.0,0.01376643]
[1765989693739,0.00161287,86504.0,86486.0,0.01376643]
[1765989694423,0.49787,86530.0,86503.0,0.00161287]
[1765989694580,0.01351176,86557.0,86503.0,0.00161287]
[1765989694581,0.01155494,86543.0,86503.0,0.00161287]
[1765989694792,1.0,86532.0,86503.0,0.00161287]
[1765989695028,0.0907,86529.0,86504.0,0.01156015]
[1765989695207,0.391,86531.0,86504.0,0.00161287]
[1765989695408,0.0907,86528.0,86504.0,0.00161287]
[1765989695606,0.0907,86526.0,86509.0,0.01351176]
[1765989695810,1.19311,86532.0,86510.0,0.01155935]
[1765989695811,0.69524,86532.0,86510.0,0.01155935]
[1765989696011,0.0107998,86531.0,86514.0,0.48651]
[1765989696326,0.0107998,86530.0,86514.0,0.48812287]
[1765989696529,0.00214,86546.0,86523.0,0.50002176]
[1765989696704,0.00214,86546.0,86523.0,1.23163463]
[1765989697336,0.69524,86559.0,86523.0,1.23163463]
[1765989697337,1.0,86562.0,86537.0,0.01351176]
[1765989697533,1.0,86554.0,86537.0,0.01512463]
[1765989697797,0.71221432,86560.0,86537.0,0.00161287]
[1765989697798,1.0,86552.0,86537.0,0.00161287]
[1765989697970,0.0907,86552.0,86537.0,0.00161287]
[1765989698174,0.0907,86558.0,86532.0,0.01872]
[1765989698379,0.95482145,86560.0,86532.0,0.01872]
[1765989698380,0.49787,86551.0,86532.0,0.01872]
[1765989698719,0.723767,86560.0,86525.0,0.01872]
[1765989698720,1.0,86548.0,86525.0,0.01872]
[1765989698918,0.58857,86546.0,86525.0,0.01872]
[1765989699059,1.28381,86542.0,86523.0,0.01351176]
[1765989699259,0.01872,86549.0,86507.0,1.22806975]
[1765989699260,0.0907,86540.0,86509.0,0.01351176]
[1765989699468,1.19311,86534.0,86509.0,0.01351176]
[1765989699671,0.0907,86530.0,86509.0,0.01351176]
[1765989699906,0.01872,86537.0,86509.0,0.01351176]
[1765989699907,0.0907,86526.0,86509.0,0.01351176]
[1765989700270,0.0907,86526.0,86494.0,0.23122862]
[1765989700473,0.0907,86526.0,86492.0,0.73]
[1765989700474,1.29188,86520.0,86500.0,0.01351176]
[1765989700655,0.0907,86515.0,86500.0,0.01351176]
[1765989700859,0.0907,86511.0,86500.0,0.01351176]
[1765989701124,0.1847,86510.0,86500.0,0.01351176]
[1765989701340,0.0907,86511.0,86500.0,0.01351176]
[1765989701899,0.0907,86525.0,86500.0,0.01451176]
[1765989702120,0.0907,86525.0,86500.0,0.01351176]
[1765989702327,0.51606,86523.0,86484.0,0.01872]
[1765989702601,1.0907,86509.0,86500.0,0.002]
[1765989702805,0.51606,86508.0,86500.0,0.002]
[1765989703003,0.51606,86508.0,86488.0,0.69401]
[1765989703004,0.00161,86508.0,86488.0,0.69401]
[1765989703209,0.00161,86508.0,86489.0,0.01156216]
[1765989703392,0.00161,86508.0,86487.0,0.24281024]
[1765989703393,0.00161,86508.0,86497.0,0.01156109]
[1765989703596,0.00161,86508.0,86491.0,1.18918]
[1765989703793,0.00161,86508.0,86492.0,0.01156176]
[1765989704033,0.00161,86508.0,86491.0,1.18918]
[1765989704397,0.00161,86508.0,86491.0,0.69401]
[1765989704600,0.00161,86508.0,86498.0,0.01351176]
[1765989705076,0.001,86509.0,86498.0,0.51029463]
[1765989705237,0.01440276,86523.0,86498.0,0.03384463]
[1765989705440,0.60676,86519.0,86498.0,0.02033287]
[1765989705760,0.60676,86519.0,86498.0,0.00161287]
[1765989705761,0.0907,86506.0,86498.0,0.00161287]
[1765989705917,0.682081,86500.0,86486.0,0.00025467]
[1765989706121,1.0907,86498.0,86478.0,0.00952308]
[1765989706330,0.0907,86493.0,86464.0,0.04451974]
[1765989706535,0.0907,86489.0,86466.0,0.01872]
[1765989706735,0.0907,86487.0,86466.0,0.01872]
[1765989707097,0.0907,86487.0,86466.0,1.21946523]
[1765989707374,0.0907,86487.0,86466.0,0.01872]
[1765989707375,0.4869,86486.0,86466.0,0.01872]
[1765989707535,0.0907,86487.0,86466.0,0.01872]
[1765989707536,0.0907,86487.0,86477.0,0.01351176]
[1765989708035,0.0907,86487.0,86486.0,0.00214074]
[1765989708579,0.10150307,86487.0,86486.0,0.00214074]
[1765989708819,0.78662307,86487.0,86486.0,7.4e-07]
[1765989709234,0.10150307,86487.0,86486.0,7.4e-07]
[1765989709888,0.78662307,86487.0,86486.0,7.4e-07]
[1765989710106,0.01241594,86487.0,86486.0,7.4e-07]
[1765989710313,0.0907,86484.0,86477.0,7.4e-07]
[1765989710525,0.0907,86484.0,86464.0,0.01351176]
[1765989710526,0.0907,86478.0,86464.0,0.01351176]
[1765989710719,0.01080307,86477.0,86464.0,0.01351176]
[1765989710918,0.01241594,86477.0,86458.0,0.0002]
[1765989711299,0.01241594,86477.0,86464.0,0.01351176]
[1765989711464,0.01241594,86477.0,86458.0,0.0002]
[1765989711667,0.0907,86474.0,86458.0,0.0002]
[1765989711868,1.0,86472.0,86458.0,0.0002]
[1765989712070,0.6136,86471.0,86458.0,0.0002]
[1765989712270,0.0907,86468.0,86458.0,0.0002]
[1765989712496,0.0907,86468.0,86440.0,0.01156871]
[1765989712497,0.0907,86466.0,86441.0,0.01156858]
[1765989712702,0.09231287,86466.0,86442.0,0.01156845]
[1765989712925,0.09231287,86466.0,86443.0,0.01156831]
[1765989713100,0.09231287,86466.0,86444.0,0.01156818]
[1765989713336,0.0907,86464.0,86443.0,0.01156831]
[1765989713540,0.09231287,86464.0,86439.0,0.71273]
[1765989713952,0.09231287,86464.0,86444.0,0.01156818]
[1765989714115,0.09231287,86464.0,86446.0,1.18918]
[1765989714351,0.00161287,86464.0,86436.0,0.50673925]
[1765989714572,0.00161287,86464.0,86437.0,0.01156911]
[1765989714784,0.0907,86459.0,86436.0,0.49517]
[1765989715216,0.0907,86449.0,86432.0,0.01351176]
[1765989715423,0.0907,86450.0,86432.0,0.01351176]
[1765989715623,0.0907,86441.0,86414.0,0.01157219]
[1765989715847,0.0907,86441.0,86413.0,0.72661492]
[1765989716208,1.29188,86441.0,86414.0,0.01157219]
[1765989716412,0.2896,86440.0,86424.0,0.01157085]
[1765989716611,0.2896,86440.0,86417.0,0.24300611]
[1765989716772,1.29188,86440.0,86415.0,0.01157206]
[1765989716957,2.00425849,86440.0,86419.0,0.02368328]
[1765989717160,0.14406735,86484.0,86420.0,0.49517]
[1765989717366,0.01872,86482.0,86470.0,0.00199998]
[1765989717562,0.71237849,86480.0,86470.0,0.00099999]
[1765989717817,0.01872,86482.0,86472.0,0.01156443]
[1765989718050,0.4554,86508.0,86490.0,0.00199998]
[1765989718262,0.01872,86507.0,86500.0,0.00099999]
[1765989718477,0.01872,86506.0,86503.0,0.01156029]
[1765989718675,0.01872,86506.0,86492.0,0.01387411]
[1765989718676,1.0,86505.0,86467.0,0.23130211]
[1765989718886,0.01872,86506.0,86467.0,0.23130211]
[1765989718887,0.68512,86498.0,86468.0,0.01156497]
[1765989719131,0.68512,86498.0,86454.0,0.0907]
[1765989719132,0.68512,86485.0,86448.0,0.01156764]
[1765989719365,0.01387013,86497.0,86447.0,0.69401]
[1765989719366,0.3683,86478.0,86459.0,0.01156617]
[1765989719588,0.0907,86476.0,86457.0,0.01156644]
[1765989719783,0.0907,86476.0,86456.0,0.24289545]
[1765989720186,0.0907,86476.0,86456.0,0.01156657]
[1765989720387,0.0907,86476.0,86465.0,0.23130746]
[1765989720617,0.0907,86476.0,86440.0,0.71237849]
[1765989720618,1.01387013,86475.0,86449.0,0.01156751]
[1765989720823,0.51606,86467.0,86440.0,0.01156871]
[1765989721032,0.0907,86464.0,86441.0,0.01156858]
[1765989721275,0.71237849,86500.0,86471.0,0.01156457]
[1765989721489,0.00161287,86495.0,86475.0,0.01351176]
[1765989721723,0.0907,86484.0,86453.0,0.01156697]
[1765989721951,1.0907,86463.0,86416.0,0.03100798]
[1765989722126,0.60676,86451.0,86416.0,0.69401]
[1765989722268,0.60676,86448.0,86423.0,0.01157099]
[1765989722441,0.0907,86445.0,86421.0,0.01157126]
[1765989722696,0.51606,86439.0,86431.0,4.9e-06]
[1765989722910,0.01387013,86438.0,86431.0,4.9e-06]
[1765989723122,0.0907,86437.0,86431.0,4.9e-06]
[1765989723982,0.01872,86436.0,86431.0,4.9e-06]
[1765989724190,0.71237849,86450.0,86432.0,0.01351176]
[1765989724191,0.0907,86449.0,86432.0,0.01351176]
[1765989724417,0.01872,86448.0,86435.0,0.01156938]
[1765989724658,0.01872,86448.0,86434.0,0.2313901]
[1765989724659,0.01814501,86469.0,86445.0,0.01351176]
[1765989724864,0.71237849,86470.0,86446.0,0.01156791]
[1765989724865,0.02935907,86465.0,86446.0,0.01156791]
[1765989725105,0.02935907,86465.0,86448.0,0.01156764]
[1765989725312,0.02935907,86465.0,86457.0,0.01156644]
[1765989725514,0.0021419,86491.0,86458.0,0.01351176]
[1765989725515,0.01872,86464.0,86458.0,0.01351176]
[1765989725735,0.51606,86488.0,86470.0,0.0115647]
[1765989726072,0.01872,86487.0,86470.0,0.24285714]
[1765989726278,0.01872,86487.0,86474.0,0.01156416]
[1765989726545,0.02033287,86487.0,86462.0,0.01156577]
[1765989726754,0.51606,86479.0,86457.0,0.01156644]
[1765989726965,0.0021419,86491.0,86478.0,0.01156363]
[1765989727193,1.9e-06,86491.0,86489.0,0.23124158]
[1765989727411,0.05768063,86528.0,86496.0,0.23122456]
[1765989727412,0.01872,86518.0,86496.0,0.23122456]
[1765989727625,0.01872,86518.0,86501.0,0.01156055]
[1765989727910,0.05740115,86538.0,86490.0,0.36636]
[1765989727911,0.51606,86542.0,86505.0,0.69401]
[1765989728114,0.51606,86542.0,86499.0,0.36636]
[1765989728115,0.02931661,86539.0,86518.0,0.01155828]
[1765989728313,0.71237849,86540.0,86519.0,0.00452243]
[1765989728521,0.01872,86541.0,86516.0,0.01155855]
[1765989728729,0.01872,86541.0,86493.0,0.34684819]
[1765989728730,0.51606,86529.0,86506.0,0.01155989]
[1765989728932,0.03259013,86528.0,86507.0,0.01155975]
[1765989729101,0.12329013,86528.0,86511.0,0.01155922]
[1765989729302,0.12329013,86528.0,86519.0,0.01155815]
[1765989729303,0.0907,86528.0,86519.0,0.01155815]
[1765989729515,0.01872,86531.0,86526.0,0.23114234]
[1765989729650,0.01872,86544.0,86530.0,0.01155668]
[1765989729846,0.01872,86544.0,86515.0,0.36636]
[1765989729847,0.6303,86548.0,86537.0,0.01155575]
[1765989730116,0.71237849,86550.0,86525.0,0.01155735]
[1765989730247,0.71237849,86540.0,86530.0,0.01155668]
[1765989730452,0.0907,86549.0,86527.0,0.01155708]
[1765989730707,0.0907,86549.0,86531.0,0.01155655]
[1765989730904,0.0907,86549.0,86544.0,0.01351176]
[1765989731237,0.01446769,86563.0,86549.0,0.01155414]
[1765989731460,1.0,86592.0,86551.0,0.35189]
[1765989731662,0.9343,86588.0,86557.0,0.73716]
[1765989731871,0.9343,86588.0,86566.0,0.01155187]
[1765989731872,0.0907,86587.0,86566.0,0.01155187]
[1765989732114,0.0907,86587.0,86551.0,0.35189]
[1765989732115,0.0004,86593.0,86579.0,0.01351176]
[1765989732324,0.74068,86611.0,86579.0,0.01351176]
[1765989732325,0.71237849,86610.0,86583.0,0.73716]
[1765989732537,0.00161287,86610.0,86585.0,0.73716]
[1765989732791,1.0907,86599.0,86570.0,0.01155134]
[1765989732995,0.49441013,86598.0,86578.0,0.01155027]
[1765989733194,0.0907,86597.0,86573.0,0.23101845]
[1765989733315,0.48054,86610.0,86585.0,0.01154934]
[1765989733516,0.48054,86606.0,86569.0,0.73716]
[1765989733719,0.48054,86589.0,86567.0,0.01872]
[1765989734022,0.0907,86584.0,86555.0,0.05001839]
[1765989734439,0.0907,86579.0,86555.0,0.05001839]
[1765989734660,0.01387013,86583.0,86544.0,0.01351176]
[1765989734661,0.48054,86564.0,86544.0,0.01351176]
[1765989734831,0.0907,86560.0,86544.0,0.01351176]
[1765989735024,0.10457013,86559.0,86544.0,0.01351176]
[1765989735486,0.10457013,86559.0,86544.0,1.76e-06]
[1765989735487,0.00925016,86558.0,86544.0,1.76e-06]
[1765989735682,0.0907,86552.0,86530.0,0.01351176]
[1765989735965,0.0907,86552.0,86543.0,0.01351176]
[1765989736866,0.10942,86564.0,86543.0,0.01351176]
[1765989737474,0.09231287,86560.0,86543.0,0.01351176]
[1765989737689,0.09231287,86560.0,86531.0,0.01351176]
[1765989737690,0.48054,86556.0,86531.0,0.01351176]
[1765989737888,0.48054,86539.0,86500.0,0.00099999]
[1765989738093,0.0907,86527.0,86500.0,0.01156069]
[1765989738322,0.0907,86527.0,86507.0,0.01155975]
[1765989738605,0.0907,86527.0,86508.0,0.01155962]
[1765989738799,0.0907,86527.0,86513.0,0.01155895]
[1765989738999,0.0907,86527.0,86512.0,0.73716]
[1765989739161,0.02851187,86542.0,86488.0,0.34686618]
[1765989739162,0.01872,86532.0,86502.0,0.01156042]
[1765989739374,0.00792937,86531.0,86526.0,3.13e-06]
[1765989739767,0.0907,86527.0,86507.0,0.01351176]
[1765989739963,0.01200228,86526.0,86507.0,0.01351176]
[1765989740171,0.02851187,86542.0,86532.0,0.01155641]
[1765989740350,0.00161287,86560.0,86537.0,0.01155575]
[1765989740580,0.00161287,86560.0,86539.0,0.01155548]
[1765989740757,0.00161287,86560.0,86530.0,0.73716]
[1765989740758,1.0,86559.0,86530.0,0.73716]
[1765989740967,0.00161287,86560.0,86491.0,0.06018484]
[1765989740968,0.48054,86555.0,86531.0,0.01351176]
[1765989741229,1.48054,86546.0,86503.0,0.01156029]
[1765989741455,0.48054,86531.0,86499.0,0.73716]
[1765989741673,0.48054,86527.0,86499.0,0.73716]
[1765989741890,1.0,86525.0,86500.0,0.01156069]
[1765989742091,0.00186785,86524.0,86499.0,0.73716]
[1765989742290,1.0,86523.0,86502.0,0.23120699]
[1765989742426,0.48054,86539.0,86507.0,0.02507151]
[1765989742624,0.24263841,86549.0,86507.0,0.02507151]
[1765989742625,0.0907,86534.0,86507.0,0.01351176]
[1765989742856,0.02058785,86537.0,86507.0,0.01351176]
[1765989742857,0.48054,86527.0,86507.0,0.01351176]
[1765989743074,0.0907,86530.0,86513.0,0.01155895]
[1765989743283,0.0907,86530.0,86520.0,0.01351176]
[1765989743284,0.01872,86529.0,86520.0,0.01351176]
[1765989744492,0.57124,86527.0,86507.0,0.01351176]
[1765989744711,0.48054,86522.0,86508.0,1.76e-06]
[1765989744926,0.48054,86520.0,86495.0,0.01351176]
[1765989745130,0.48054,86518.0,86495.0,0.01351176]
[1765989745370,0.02058785,86517.0,86495.0,0.01351176]
[1765989745788,0.02058785,86517.0,86476.0,0.0115639]
[1765989745789,0.0907,86511.0,86476.0,0.0115639]
[1765989746019,0.03027842,86517.0,86478.0,0.01156363]
[1765989746020,1.0,86505.0,86478.0,0.01156363]
[1765989746219,0.0907,86502.0,86480.0,0.01156336]
[1765989746434,1.0,86500.0,86478.0,0.01156363]
[1765989746693,0.00186785,86499.0,86480.0,0.01156336]
[1765989746851,0.6928,86500.0,86481.0,0.01161176]
[1765989747051,0.0907,86502.0,86481.0,0.01161176]
[1765989747052,0.00186785,86499.0,86481.0,0.01161176]
[1765989747250,0.0907,86503.0,86482.0,0.01156309]
[1765989747464,0.2774,86502.0,86481.0,0.01161176]
[1765989747640,0.1946,86502.0,86481.0,0.01161176]
[1765989747852,0.01872,86501.0,86481.0,0.24287417]
[1765989748073,0.0907,86503.0,86494.0,0.01351176]
[1765989748317,0.01872,86502.0,86494.0,0.01351176]
[1765989748542,0.01872,86502.0,86481.0,0.24287596]
[1765989748543,0.00186785,86501.0,86481.0,0.01161176]
[1765989748696,0.48054,86500.0,86481.0,0.01161176]
[1765989749308,0.48054,86498.0,86481.0,0.01161176]
[1765989749632,0.48054,86496.0,86476.0,0.0115639]
[1765989749766,0.0907,86497.0,86487.0,0.01351176]
[1765989749964,0.01872,86495.0,86487.0,0.01351176]
[1765989750448,0.0143332,86517.0,86487.0,0.01351176]
[1765989750449,0.0907,86508.0,86488.0,0.01156229]
[1765989750670,0.0907,86508.0,86487.0,0.01351176]
[1765989750671,0.01872,86507.0,86487.0,0.01351176]
[1765989750861,0.01872,86507.0,86489.0,0.01156216]
[1765989751035,0.00186785,86506.0,86487.0,0.01351176]
[1765989751564,0.0907,86504.0,86487.0,0.01351176]
[1765989751789,0.48240785,86503.0,86487.0,0.01351176]
[1765989751999,0.74068,86506.0,86488.0,0.01351176]
[1765989752000,0.48054,86501.0,86488.0,0.01351176]
[1765989752205,0.01872,86507.0,86474.0,0.01351176]
[1765989752206,0.0907,86498.0,86474.0,0.01351176]
[1765989752353,1.74068,86491.0,86462.0,0.24287891]
[1765989752552,1.74068,86491.0,86460.0,0.01156604]
[1765989752553,1.0,86489.0,86460.0,0.01156604]
[1765989752751,0.02058785,86490.0,86451.0,0.73716]
[1765989752752,0.0907,86484.0,86458.0,0.0115663]
[1765989752957,1.0,86485.0,86458.0,0.0115663]
[1765989753160,0.48054,86487.0,86453.0,0.23133879]
[1765989753161,0.0907,86484.0,86453.0,0.01156697]
[1765989753484,0.57310785,86484.0,86457.0,0.01156644]
[1765989753696,0.57310785,86484.0,86453.0,0.01156697]
[1765989753697,0.48054,86483.0,86453.0,0.01156697]
[1765989753983,0.83138,86484.0,86456.0,0.01156657]
[1765989753984,0.00186785,86482.0,86456.0,0.01156657]
[1765989754163,0.48054,86482.0,86468.0,0.24286258]
[1765989754367,0.0907,86494.0,86474.0,0.01351176]
[1765989754571,0.0907,86491.0,86474.0,0.01351176]
[1765989754978,0.9807,86509.0,86487.0,0.02507419]
[1765989755177,0.02945182,86508.0,86487.0,0.01351176]
[1765989755418,1.0,86512.0,86500.0,0.01351176]
[1765989755602,0.01872,86507.0,86500.0,0.01351176]
[1765989755811,1.04429731,86530.0,86502.0,0.23120589]
[1765989756007,0.48054,86531.0,86500.0,0.01351176]
[1765989756008,0.01872,86529.0,86505.0,0.01156002]
[1765989756206,0.01872,86529.0,86509.0,0.01155949]
[1765989756438,0.01872,86528.0,86519.0,0.01351176]
[1765989756641,0.48054,86544.0,86519.0,0.02506991]
[1765989756845,0.01872,86539.0,86519.0,0.02506991]